bitfinex-derivatives/quotes_SOLF0:USTF0_20250212
["timestamp","ask_amount","ask_price","bid_price","bid_amount"]
[1739401425934,0.03219078,197.42,197.39,0.0346397]
[1739401426135,0.03219078,197.42,197.33,20.44685381]
[1739401426334,0.03219078,197.42,197.39,0.03726759]
[1739401426930,5.0649,197.41,197.39,0.03726759]
[1739401427136,0.03219078,197.42,197.39,0.03726759]
[1739401428040,0.03219078,197.42,197.39,5.10256759]
[1739401428239,0.03219078,197.42,197.39,0.03726759]
[1739401428636,0.03219078,197.42,197.41,5.0648]
[1739401428836,0.03219078,197.42,197.39,0.03726759]
[1739401429434,0.03219078,197.42,197.41,5.0648]
[1739401430433,0.03219078,197.42,197.39,0.03726759]
[1739401430634,0.03219078,197.42,197.37,20.44685381]
[1739401431035,5.05368538,197.43,197.41,104.98820361]
[1739401431436,5.0646,197.42,197.41,104.98820361]
[1739401431737,5.0646,197.42,197.41,102.50760361]
[1739401432037,5.0646,197.42,197.41,90.31390361]
[1739401432230,5.0646,197.42,197.41,85.35290361]
[1739401432429,5.0648,197.41,197.4,0.03253864]
[1739401434337,0.03781932,197.43,197.4,0.03253864]
[1739401434536,0.03781932,197.43,197.4,5.09743864]
[1739401434740,0.03781932,197.43,197.4,0.03253864]
[1739401435938,0.03781932,197.43,197.41,5.0648]
[1739401436140,0.03781932,197.43,197.4,0.03253864]
[1739401436438,0.03781932,197.43,197.42,5.0646]
[1739401436636,36.0382852,197.53,197.41,1.5075]
[1739401436842,5.0628,197.5,197.41,1.5075]
[1739401437042,5.0628,197.5,197.44,5.0638]
[1739401437337,5.0631,197.48,197.41,1.5075]
[1739401437542,36.0382852,197.53,197.44,5.0638]
[1739401437742,0.03327742,197.46,197.43,0.03539444]
[1739401437940,5.0626,197.5,197.43,0.03539444]
[1739401438139,0.03268361,197.46,197.44,5.0638]
[1739401438341,36.0382852,197.53,197.44,5.0638]
[1739401438543,0.03565324,197.47,197.44,5.0638]
[1739401438742,0.03565324,197.47,197.43,5.09969444]
[1739401438942,0.03565324,197.47,197.43,0.03539444]
[1739401439834,5.0641,197.44,197.43,0.03539444]
[1739401440438,36.0382852,197.44,197.36,20.72015368]
[1739401441646,5.0652,197.4,197.38,0.0389897]
[1739401442443,0.03249597,197.42,197.38,0.0389897]
[1739401443147,5.0653,197.39,197.38,0.0389897]
[1739401443346,0.03249597,197.42,197.38,0.0389897]
[1739401444346,41.1035852,197.39,197.38,8.97e-05]
[1739401444554,36.0382852,197.39,197.28,20.72015368]
[1739401444943,5.067,197.33,197.28,25.78825368]
[1739401445148,5.067,197.33,197.28,5.0681]
[1739401445746,0.03505653,197.32,197.29,0.03344516]
[1739401445945,0.03505653,197.32,197.27,22.26815368]
[1739401446148,0.03556262,197.31,197.28,0.03364509]
[1739401446349,0.03556262,197.31,197.29,5.0679]
[1739401446650,22.20531302,197.41,197.28,0.03364509]
[1739401446844,0.5662,197.49,197.36,5.0661]
[1739401446845,5.0646,197.42,197.36,5.0661]
[1739401447043,22.20531302,197.47,197.29,22.20531302]
[1739401447242,0.91292929,197.46,197.29,22.20531302]
[1739401447447,5.0648,197.42,197.36,5.0659]
[1739401447953,0.03311664,197.41,197.37,0.0327619]
[1739401449152,0.03311664,197.41,197.37,5.0983619]
[1739401449452,0.03311664,197.41,197.37,0.0327619]
[1739401450754,5.0651,197.4,197.37,0.0327619]
[1739401451350,0.03311664,197.41,197.37,0.0327619]
[1739401452250,36.07980796,197.41,197.37,0.0327619]
[1739401452757,5.0656,197.38,197.37,0.0327619]
[1739401453154,36.07980796,197.41,197.37,0.0327619]
[1739401453455,0.03311664,197.41,197.37,0.0327619]
[1739401453954,0.03311664,197.41,197.38,5.0654]
[1739401454150,0.03311664,197.41,197.37,0.0327619]
[1739401454151,36.04669132,197.51,197.37,0.0327619]
[1739401454348,0.91273795,197.5,197.34,36.04669132]
[1739401454952,0.91273795,197.5,197.38,5.0654]
[1739401455353,0.03481647,197.46,197.42,0.03404398]
[1739401455554,5.0643,197.43,197.42,0.03404398]
[1739401456856,36.04669132,197.41,197.29,20.72015368]
[1739401457057,36.04669132,197.38,197.29,20.72015368]
[1739401457758,36.08504426,197.35,197.32,0.03290407]
[1739401458157,5.0669,197.33,197.32,0.03290407]
[1739401458357,0.03835294,197.35,197.32,0.03290407]
[1739401458654,5.10475294,197.35,197.32,0.03290407]
[1739401459259,0.03835294,197.35,197.33,5.0668]
[1739401459561,100.32,197.52,197.32,0.03290407]
[1739401459759,0.5662,197.51,197.31,36.04669132]
[1739401460461,5.0638,197.45,197.31,36.04669132]
[1739401460660,0.03576231,197.4,197.37,0.03746588]
[1739401460864,0.03576231,197.4,197.38,5.0656]
[1739401462553,0.03576231,197.4,197.39,5.0653]
[1739401462853,36.04669132,197.51,197.38,3.1925]
[1739401463053,36.04669132,197.54,197.38,3.1925]
[1739401463257,0.91254118,197.53,197.38,3.1925]
[1739401463462,36.04669132,197.54,197.38,3.1925]
[1739401463658,5.0623,197.52,197.38,3.1925]
[1739401463965,0.03811305,197.48,197.44,0.03321272]
[1739401464457,5.10131305,197.48,197.44,0.03321272]
[1739401464660,0.03811305,197.48,197.44,0.03321272]
[1739401466464,36.04669132,197.57,197.44,0.03321272]
[1739401466764,36.04669132,197.57,197.4,36.04669132]
[1739401466966,0.91242503,197.56,197.4,36.04669132]
[1739401467365,36.04669132,197.57,197.4,36.04669132]
[1739401467566,36.04669132,197.54,197.38,3.1925]
[1739401467770,5.063,197.48,197.47,0.03305108]
[1739401467963,36.04669132,197.51,197.39,1.547]
[1739401468161,36.04669132,197.51,197.46,0.03595261]
[1739401468464,5.0633,197.47,197.46,0.03595261]
[1739401468863,5.0633,197.47,197.46,5.261e-05]
[1739401469057,36.04669132,197.48,197.38,3.1925]
[1739401469766,36.04669132,197.45,197.37,27.64170255]
[1739401469966,36.04669132,197.48,197.37,27.64170255]
[1739401470361,0.03631993,197.44,197.41,0.034791]
[1739401471569,0.03631993,197.44,197.42,5.0644]
[1739401471770,36.04669132,197.54,197.41,0.034791]
[1739401471971,5.0623,197.51,197.45,5.0636]
[1739401472370,36.04669132,197.57,197.4,36.04669132]
[1739401472676,36.04669132,197.54,197.4,36.04669132]
[1739401472973,0.03803319,197.5,197.47,0.03663778]
[1739401473175,0.03803319,197.5,197.37,36.04669132]
[1739401473369,36.04669132,197.54,197.47,0.03426987]
[1739401473671,0.03840644,197.45,197.36,1.548]
[1739401473975,0.03202027,197.42,197.39,0.03405877]
[1739401474174,36.04669132,197.48,197.36,1.548]
[1739401474376,0.03394727,197.42,197.39,0.03769709]
[1739401476077,36.04669132,197.52,197.39,0.03769709]
[1739401476271,0.91266281,197.51,197.36,1.548]
[1739401476467,5.0638,197.46,197.39,5.0651]
[1739401476673,36.04669132,197.52,197.36,1.548]
[1739401476870,5.0642,197.44,197.38,5.0656]
[1739401477070,36.04669132,197.52,197.36,1.548]
[1739401477276,0.03711789,197.43,197.39,0.03743657]
[1739401477476,36.04669132,197.49,197.36,1.548]
[1739401477675,0.03861491,197.43,197.39,0.0345159]
[1739401478273,5.0648,197.42,197.39,0.0345159]
[1739401478766,0.03861491,197.43,197.39,0.0345159]
[1739401479066,0.03861491,197.43,197.39,5.0996159]
[1739401479265,0.03861491,197.43,197.39,0.0345159]
[1739401479467,5.10321491,197.43,197.39,0.0345159]
[1739401481579,0.03861491,197.43,197.39,0.0345159]
[1739401482079,22.17899525,197.52,197.39,0.0345159]
[1739401482381,22.17899525,197.52,197.36,23.72699525]
[1739401482678,0.6396,197.54,197.36,23.72699525]
[1739401482983,212.17899525,197.56,197.39,22.17899525]
[1739401483172,5.0616,197.54,197.42,22.17899525]
[1739401483476,0.03422025,197.49,197.46,0.03305275]
[1739401484582,0.03422025,197.49,197.48,5.063]
[1739401486182,22.17899525,197.59,197.46,0.03305275]
[1739401486583,22.17899525,197.59,197.45,5.0636]
[1739401486778,22.17899525,197.56,197.45,5.0636]
[1739401486979,22.17899525,197.56,197.44,1.6308]
[1739401487175,5.0903447,197.52,197.49,0.03432509]
[1739401487984,5.0625,197.5,197.49,0.03432509]
[1739401488482,5.0623,197.51,197.49,0.03432509]
[1739401488682,0.0281447,197.52,197.49,0.03432509]
[1739401489086,5.0623,197.51,197.49,0.03432509]
[1739401489281,0.0281447,197.52,197.49,0.03432509]
[1739401489681,5.0625,197.51,197.49,0.03432509]
[1739401490185,0.0281447,197.52,197.49,0.03432509]
[1739401490685,5.0625,197.5,197.49,0.03432509]
[1739401491781,22.17899525,197.5,197.4,1.5013]
[1739401492382,22.17899525,197.53,197.4,1.5013]
[1739401493082,5.09892823,197.48,197.45,0.03259601]
[1739401494086,0.03572823,197.48,197.45,5.09629601]
[1739401494584,0.03572823,197.48,197.45,0.03259601]
[1739401495385,5.0633,197.47,197.45,0.03259601]
[1739401496089,5.0635,197.46,197.45,0.03259601]
[1739401497690,5.09902823,197.48,197.45,0.03259601]
[1739401497879,0.03572823,197.48,197.45,0.03259601]
[1739401498491,0.03572823,197.48,197.45,5.09619601]
[1739401498893,0.03572823,197.48,197.45,0.03259601]
[1739401499090,0.03572823,197.48,197.47,5.0633]
[1739401499790,0.03572823,197.48,197.45,0.03259601]
[1739401502096,5.09892823,197.48,197.45,0.03259601]
[1739401502399,0.03572823,197.48,197.45,0.03259601]
[1739401503196,5.0635,197.46,197.45,0.03259601]
[1739401505200,5.0644,197.43,197.38,5.0654]
[1739401505398,22.17899525,197.47,197.37,1.5315]
[1739401505596,22.17899525,197.47,197.34,10.04204887]
[1739401505798,22.17899525,197.44,197.34,8.49554887]
[1739401506199,22.17899525,197.48,197.34,8.49554887]
[1739401506399,0.03834489,197.41,197.37,0.03273628]
[1739401506599,0.03834489,197.41,197.4,5.0651]
[1739401506807,0.03834489,197.41,197.37,0.03273628]
[1739401508301,0.03834489,197.41,197.4,5.0651]
[1739401508502,22.17899525,197.51,197.37,0.03273628]
[1739401508801,22.17899525,197.51,197.36,22.17899525]
[1739401509400,5.0622,197.52,197.44,5.0639]
[1739401509603,0.03609371,197.45,197.44,5.0639]
[1739401509900,0.03412539,197.46,197.44,5.0639]
[1739401510100,5.0623,197.51,197.44,5.0639]
[1739401510301,0.03254361,197.47,197.44,5.0639]
[1739401510800,0.03254361,197.47,197.46,5.0635]
[1739401512300,0.03254361,197.47,197.44,6.6881]
[1739401512600,0.03254361,197.47,197.44,5.0638]
[1739401512896,0.03254361,197.47,197.43,0.03219073]
[1739401513405,212.17899525,197.57,197.43,0.03219073]
[1739401513593,22.17899525,197.57,197.42,1.5737]
[1739401513794,5.0619,197.53,197.48,5.063]
[1739401513995,22.17899525,197.54,197.42,1.5737]
[1739401514399,22.17899525,197.54,197.44,5.0638]
[1739401514703,0.0241773,197.5,197.46,0.03566193]
[1739401515501,5.063,197.48,197.46,0.03566193]
[1739401515701,22.17899525,197.48,197.46,0.03566193]
[1739401516201,22.17899525,197.48,197.4,6.92154887]
[1739401516401,22.17899525,197.45,197.4,6.92154887]
[1739401516993,22.17899525,197.48,197.4,6.92154887]
[1739401517504,0.03736956,197.46,197.42,0.03855082]
[1739401517698,22.17899525,197.45,197.42,0.03855082]
[1739401518004,22.17899525,197.45,197.4,6.92154887]
[1739401518602,0.03736956,197.46,197.34,11.47786587]
[1739401518902,22.17899525,197.48,197.34,11.47786587]
[1739401519203,0.03309556,197.42,197.38,0.03745784]
[1739401519705,0.03309556,197.42,197.4,5.0651]
[1739401520097,0.03309556,197.42,197.38,0.03745784]
[1739401522701,5.0652,197.4,197.38,0.03745784]
[1739401523098,0.03309556,197.42,197.38,0.03745784]
[1739401523400,5.0653,197.39,197.38,0.03745784]
[1739401523807,22.17899525,197.4,197.33,6.92154887]
[1739401524506,5.0666,197.34,197.33,6.92154887]
[1739401526003,5.0669,197.33,197.32,0.0345193]
[1739401526508,0.03207829,197.35,197.32,0.0345193]
[1739401528404,5.0669,197.33,197.32,0.0345193]
[1739401529308,22.17899525,197.34,197.25,4.55785419]
[1739401530004,5.0679,197.29,197.25,4.55785419]
[1739401530204,22.17899525,197.31,197.25,4.55785419]
[1739401530600,0.03817868,197.3,197.26,0.03626113]
[1739401530807,22.17899525,197.27,197.25,4.55785419]
[1739401531005,22.21717393,197.3,197.25,4.55785419]
[1739401531310,22.21717393,197.3,197.18,8.41584887]
[1739401531700,22.17899525,197.3,197.18,8.41584887]
[1739401531906,5.1025318,197.26,197.22,0.03380186]
[1739401532103,0.0338318,197.26,197.22,0.03380186]
[1739401535005,0.0338318,197.26,197.22,5.10350186]
[1739401535512,0.0338318,197.26,197.22,0.03380186]
[1739401537908,22.17899525,197.34,197.22,0.03380186]
[1739401538216,0.7141,197.37,197.2,22.17899525]
[1739401538416,0.7141,197.37,197.25,5.0689]
[1739401538614,0.91335131,197.36,197.25,5.0689]
[1739401538817,0.7141,197.37,197.25,5.0689]
[1739401539012,5.0673,197.32,197.29,0.03709793]
[1739401539215,0.03706681,197.33,197.29,0.03709793]
[1739401541718,5.0676,197.3,197.29,0.03709793]
[1739401543117,5.0691,197.25,197.18,1.4943]
[1739401543620,5.0691,197.25,197.19,5.0704]
[1739401544023,5.0698,197.22,197.18,1.4943]
[1739401544317,0.03327606,197.22,197.18,6.6010219]
[1739401545418,0.03327606,197.22,197.18,1.5305219]
[1739401546311,0.03327606,197.22,197.18,6.6010219]
[1739401547114,0.03327606,197.22,197.18,0.0362219]
[1739401547316,5.0705,197.19,197.18,0.0362219]
[1739401548321,22.17899525,197.21,197.18,0.0362219]
[1739401549023,5.0705,197.19,197.18,0.0362219]
[1739401550422,5.07,197.21,197.18,0.0362219]
[1739401550620,0.03327606,197.22,197.18,0.0362219]
[1739401551317,5.0705,197.19,197.18,0.0362219]
[1739401552419,5.0703,197.2,197.18,0.0362219]
[1739401552917,0.03327606,197.22,197.18,0.0362219]
[1739401553220,22.17899525,197.21,197.07,4.6765]
[1739401553524,22.17899525,197.18,197.07,11.59804887]
[1739401553718,5.0725,197.12,197.07,11.59804887]
[1739401553914,5.0725,197.12,197.07,16.67154887]
[1739401554513,0.0356604,197.11,197.08,0.03721743]
[1739401555225,5.1082604,197.11,197.08,0.03721743]
[1739401555626,0.0356604,197.11,197.08,0.03721743]
[1739401556424,0.0356604,197.11,197.09,5.073]
[1739401556625,0.0356604,197.11,197.08,0.03721743]
[1739401557024,0.0356604,197.11,197.1,5.0728]
[1739401557417,22.17899525,197.21,197.08,0.03721743]
[1739401557617,22.17899525,197.21,197.07,4.6765]
[1739401557825,5.0705,197.19,197.07,4.6765]
[1739401558227,5.0705,197.19,197.12,5.0721]
[1739401558526,0.03764996,197.17,197.14,0.0369367]
[1739401560428,22.17899525,197.24,197.14,0.0369367]
[1739401560630,190.0,197.27,197.17,5.071]
[1739401561024,5.0698,197.22,197.17,5.071]
[1739401561225,190.0,197.27,197.17,5.071]
[1739401561731,0.03696664,197.24,197.2,0.03715145]
[1739401562026,22.29149525,197.34,197.2,0.03715145]
[1739401562330,22.17899525,197.34,197.16,22.17899525]
[1739401562529,22.17899525,197.34,197.17,1.6532]
[1739401562730,5.0671,197.32,197.17,1.6532]
[1739401562925,22.17899525,197.34,197.19,22.17899525]
[1739401563225,0.03451075,197.28,197.27,5.0682]
[1739401563430,5.0668,197.34,197.25,0.03707006]
[1739401563631,0.03313067,197.29,197.25,0.03707006]
[1739401564525,0.03313067,197.29,197.25,5.10587006]
[1739401564729,5.0682,197.28,197.25,0.03707006]
[1739401564937,0.03313067,197.29,197.25,0.03707006]
[1739401565127,22.17899525,197.28,197.25,0.03707006]
[1739401565928,5.0687,197.26,197.25,0.03707006]
[1739401568626,5.0701,197.21,197.18,3.0131]
[1739401569022,22.17899525,197.25,197.16,32.18817061]
[1739401569432,22.17899525,197.25,197.14,6.92154887]
[1739401569836,0.0348796,197.21,197.18,0.03893652]
[1739401570036,5.0705,197.19,197.18,0.03893652]
[1739401570231,0.0348796,197.21,197.18,0.03893652]
[1739401570627,0.0348796,197.21,197.2,5.0702]
[1739401572535,0.0348796,197.21,197.18,0.03893652]
[1739401572735,0.0348796,197.21,197.19,5.0704]
[1739401573238,0.0348796,197.21,197.18,0.03893652]
[1739401574436,0.0348796,197.21,197.19,5.0703]
[1739401575031,0.0348796,197.21,197.2,5.0702]
[1739401575233,22.17899525,197.33,197.18,0.03893652]
[1739401575436,22.17899525,197.33,197.16,22.17899525]
[1739401575637,13.87786444,197.34,197.21,13.87786444]
[1739401575938,13.87786444,197.34,197.22,3.0742]
[1739401576337,0.03772326,197.3,197.26,0.03310691]
[1739401576537,5.10542326,197.3,197.26,0.03310691]
[1739401577041,0.03772326,197.3,197.26,0.03310691]
[1739401578045,0.03772326,197.3,197.29,5.0679]
[1739401578634,0.03772326,197.3,197.26,0.03310691]
[1739401579347,5.10562326,197.3,197.26,0.03310691]
[1739401580540,0.03772326,197.3,197.26,0.03310691]
[1739401581243,22.20246679,197.37,197.26,0.03310691]
[1739401581545,22.20246679,197.34,197.26,0.03310691]
[1739401581747,22.20246679,197.34,197.23,1.5028]
[1739401582149,22.20246679,197.34,197.24,5.069]
[1739401582348,0.03254536,197.3,197.27,0.03442912]
[1739401583052,5.0682,197.28,197.27,0.03442912]
[1739401585753,5.068,197.29,197.27,0.03442912]
[1739401585949,0.03254536,197.3,197.27,0.03442912]
[1739401586852,5.0679,197.29,197.27,0.03442912]
[1739401587053,0.03254536,197.3,197.27,0.03442912]
[1739401588157,22.20246679,197.4,197.27,0.03442912]
[1739401588361,5.0659,197.37,197.32,5.067]
[1739401588561,190.0,197.42,197.24,22.20246679]
[1739401589163,5.0655,197.39,197.27,22.20246679]
[1739401589357,0.03758949,197.35,197.31,0.03247255]
[1739401589558,0.91298269,197.45,197.3,22.20246679]
[1739401589862,22.20246679,197.46,197.31,1.5106]
[1739401590160,5.0651,197.4,197.31,1.5106]
[1739401590761,0.0301717,197.37,197.34,0.03224844]
[1739401591665,0.0301717,197.37,197.34,5.09864844]
[1739401591867,0.0301717,197.37,197.34,0.03224844]
[1739401592166,22.20246679,197.46,197.34,0.03224844]
[1739401592366,5.0643,197.44,197.37,5.0656]
[1739401593055,269.51988161,197.49,197.31,1.5106]
[1739401593260,79.51988161,197.49,197.39,0.03738081]
[1739401594270,0.91278654,197.48,197.39,0.03738081]
[1739401594666,79.51988161,197.49,197.39,0.03738081]
[1739401594867,0.91278513,197.48,197.39,0.03738081]
[1739401595169,5.0649,197.41,197.39,0.03738081]
[1739401595965,22.20246679,197.46,197.39,0.03738081]
[1739401596163,5.0651,197.4,197.39,0.03738081]
[1739401599668,5.0663,197.36,197.31,6.5778]
[1739401599868,13.86675796,197.38,197.31,1.5106]
[1739401600067,13.86675796,197.44,197.32,13.86675796]
[1739401600370,5.0646,197.42,197.32,13.86675796]
[1739401600769,0.03442536,197.39,197.35,0.03596234]
[1739401602166,5.0638,197.46,197.35,13.9027203]
[1739401602362,10.1217,197.57,197.36,1.5942]
[1739401602363,13.86675796,197.5,197.36,1.5942]
[1739401602769,13.86675796,197.5,197.43,5.0642]
[1739401602770,5.0631,197.48,197.43,5.0642]
[1739401603275,5.0622,197.52,197.46,5.0635]
[1739401603462,13.86675796,197.53,197.42,1.6526]
[1739401603667,13.86675796,197.53,197.47,0.03340899]
[1739401604064,5.0625,197.51,197.47,0.03340899]
[1739401604271,13.86675796,197.53,197.47,0.03340899]
[1739401604472,13.86675796,197.5,197.47,0.03340899]
[1739401604973,5.063,197.48,197.47,0.03340899]
[1739401605166,13.86675796,197.5,197.47,0.03340899]
[1739401605774,27.73351592,197.5,197.37,1.6526]
[1739401606076,13.86675796,197.45,197.37,1.6526]
[1739401606876,0.03599606,197.43,197.39,0.03842421]
[1739401607670,0.03599606,197.43,197.39,5.10352421]
[1739401608073,0.03599606,197.43,197.39,0.03842421]
[1739401608875,5.0651,197.4,197.39,0.03842421]
[1739401611580,5.0664,197.35,197.31,9.8253]
[1739401611873,5.0664,197.35,197.31,8.3227]
[1739401612077,5.0664,197.35,197.31,3.2553]
[1739401612670,0.0342418,197.35,197.31,3.28840913]
[1739401615076,0.0342418,197.35,197.31,8.35570913]
[1739401615375,0.0342418,197.35,197.31,3.28840913]
[1739401615669,5.1006418,197.35,197.31,3.28840913]
[1739401616279,5.0667,197.34,197.31,0.03310913]
[1739401616480,0.0342418,197.35,197.31,0.03310913]
[1739401617770,0.0342418,197.35,197.31,5.10050913]
[1739401618178,0.0342418,197.35,197.31,0.03310913]
[1739401618580,0.0342418,197.35,197.33,5.0666]
[1739401618782,0.0342418,197.35,197.31,0.03310913]
[1739401619080,190.0,197.46,197.31,0.03310913]
[1739401619275,1.0261,197.47,197.29,22.17728026]
[1739401619483,0.9129202,197.46,197.29,22.17728026]
[1739401619681,5.0644,197.43,197.37,5.0658]
[1739401620174,0.03891507,197.42,197.38,0.03484906]
[1739401621484,22.21619533,197.42,197.38,0.03484906]
[1739401621684,22.17728026,197.39,197.38,0.03484906]
[1739401622182,22.17728026,197.39,197.26,1.6178]
[1739401622183,5.066,197.37,197.26,1.6178]
[1739401622373,5.066,197.37,197.26,29.25950255]
[1739401623183,5.0666,197.34,197.26,29.25950255]
[1739401623482,0.03358431,197.33,197.3,0.03695283]
[1739401625882,5.0671,197.32,197.3,0.03695283]
[1739401626382,5.0672,197.32,197.3,0.03695283]
[1739401626982,0.03358431,197.33,197.3,0.03695283]
[1739401627582,13.9134204,197.33,197.3,0.03695283]
[1739401628077,5.0674,197.31,197.3,0.03695283]
[1739401631190,13.9134204,197.33,197.3,0.03695283]
[1739401631387,0.03358431,197.33,197.3,0.03695283]
[1739401632391,5.0674,197.32,197.3,0.03695283]
[1739401633391,5.0674,197.31,197.3,0.03695283]
[1739401636692,5.0684,197.27,197.23,5.0692]
[1739401637796,5.0684,197.27,197.23,0.03581269]
[1739401637797,5.0691,197.25,197.23,0.03581269]
[1739401637995,0.03306876,197.27,197.23,0.03581269]
[1739401638595,5.0692,197.24,197.23,0.03581269]
[1739401641501,5.0707,197.19,197.15,6.581]
[1739401642199,13.87983609,197.22,197.15,1.5095]
[1739401642601,0.03507627,197.2,197.17,0.03496429]
[1739401645403,5.0705,197.19,197.17,0.03496429]
[1739401645806,0.03507627,197.2,197.17,0.03496429]
[1739401646006,5.0707,197.18,197.17,0.03496429]
[1739401655111,5.072,197.14,197.1,6.643]
[1739401655308,13.87983609,197.15,197.1,5.0726]
[1739401655815,13.87983609,197.15,197.09,1.5372]
[1739401656208,0.0386847,197.14,197.1,0.03428015]
[1739401657414,5.1105847,197.14,197.1,5.10698015]
[1739401657715,0.0386847,197.14,197.1,5.10698015]
[1739401658418,5.0721,197.13,197.1,0.03428015]
[1739401659013,0.0386847,197.14,197.1,0.03428015]
[1739401659720,5.0723,197.12,197.1,0.03428015]
[1739401660822,0.0386847,197.14,197.1,0.03428015]
[1739401662220,5.0725,197.11,197.1,0.03428015]
[1739401663224,13.87983609,197.12,197.04,1.5938]
[1739401663225,5.0739,197.06,197.04,1.5938]
[1739401663615,13.87983609,197.08,197.02,1.5798]
[1739401663616,13.87983609,197.05,197.02,1.5798]
[1739401664022,13.87983609,197.05,197.01,6.92154887]
[1739401664222,5.0744,197.04,197.01,6.92154887]
[1739401664421,13.91321523,197.05,197.01,6.95977168]
[1739401664822,5.0747,197.03,197.01,6.95977168]
[1739401665019,13.91321523,197.05,197.01,6.95977168]
[1739401665322,0.03337914,197.05,197.01,6.95977168]
[1739401666025,13.87983609,197.11,197.01,6.95977168]
[1739401667026,0.03776216,197.08,197.07,5.0736]
[1739401668226,203.87983609,197.17,197.07,3.126]
[1739401668427,13.87983609,197.17,197.07,3.126]
[1739401668722,5.0705,197.19,197.13,5.072]
[1739401669528,0.03243493,197.18,197.14,0.03730706]
[1739401669728,219.08983609,197.17,197.02,27.64170255]
[1739401669931,13.87983609,197.08,197.02,27.64170255]
[1739401670131,13.87983609,197.05,197.02,27.64170255]
[1739401670826,13.91331609,197.05,197.02,27.67545284]
[1739401671932,13.91331609,197.05,197.02,0.03375029]
[1739401673331,0.03348,197.05,197.02,5.10835029]
[1739401673631,0.03348,197.05,197.03,1.597]
[1739401673931,13.87983609,197.11,197.03,3.1945]
[1739401674329,5.0733,197.08,197.03,3.1945]
[1739401674931,0.03607209,197.07,197.04,0.03811985]
[1739401675222,5.10967209,197.07,197.04,0.03811985]
[1739401675628,5.0741,197.05,197.04,0.03811985]
[1739401678834,18.95393609,197.05,197.04,0.03811985]
[1739401679733,0.03607209,197.07,197.04,0.03811985]
[1739401680037,5.10987209,197.07,197.04,0.03811985]
[1739401680835,0.03607209,197.07,197.04,0.03811985]
[1739401681334,0.03607209,197.07,197.04,5.11231985]
[1739401681534,0.03607209,197.07,197.04,0.03811985]
[1739401686042,0.03607209,197.07,197.04,5.11221985]
[1739401686635,0.03607209,197.07,197.04,0.03811985]
[1739401687441,5.074,197.06,197.04,0.03811985]
[1739401687743,0.03607209,197.07,197.04,0.03811985]
[1739401687948,13.87983609,197.05,196.99,7.02560232]
[1739401688138,13.87983609,197.0,196.98,21.07680696]
[1739401688646,13.87983609,197.0,196.97,7.04131275]
[1739401689241,5.0759,196.98,196.97,7.07906246]
[1739401690751,5.0759,196.98,196.97,0.03774971]
[1739401692449,5.0757,196.99,196.97,0.03774971]
[1739401692750,13.91555278,197.0,196.97,0.03774971]
[1739401693047,0.03571669,197.0,196.97,0.03774971]
[1739401693249,0.03571669,197.0,196.99,5.0756]
[1739401693449,0.03571669,197.0,196.98,3.2015]
[1739401693751,13.87983609,197.08,196.98,3.2015]
[1739401693953,13.87983609,197.08,197.0,5.0751]
[1739401694148,5.0744,197.04,197.0,5.0751]
[1739401694549,13.87983609,197.08,196.98,4.7389]
[1739401694751,5.0749,197.02,196.98,9.8146]
[1739401694950,5.0749,197.02,197.01,0.03891318]
[1739401695857,13.91312299,197.05,197.01,0.03891318]
[1739401696153,5.0746,197.03,197.01,0.03891318]
[1739401697657,5.0743,197.04,197.01,0.03891318]
[1739401698751,13.91312299,197.05,197.01,0.03891318]
[1739401698958,18.98722299,197.05,197.01,0.03891318]
[1739401699159,0.0332869,197.05,197.01,0.03891318]
[1739401699357,13.87983609,197.08,197.01,0.03891318]
[1739401699558,5.0728,197.1,197.01,0.03891318]
[1739401699753,13.87983609,197.11,196.99,13.87983609]
[1739401700158,13.87983609,197.11,197.04,5.0741]
[1739401700554,0.03701119,197.09,197.06,0.03237538]
[1739401701154,5.11011119,197.09,197.06,0.03237538]
[1739401701356,0.03701119,197.09,197.06,0.03237538]
[1739401703352,0.03701119,197.09,197.06,5.10597538]
[1739401703556,0.03701119,197.09,197.06,0.03237538]
[1739401705059,0.03701119,197.09,197.07,5.0735]
[1739401705259,0.03701119,197.09,197.06,0.03237538]
[1739401706558,0.03701119,197.09,197.07,5.0733]
[1739401708062,0.03701119,197.09,197.06,0.03237538]
[1739401708269,0.03701119,197.09,197.06,5.10617538]
[1739401709066,0.03701119,197.09,197.06,0.03237538]
[1739401709273,13.87983609,197.08,197.06,0.03237538]
[1739401709665,5.0736,197.07,197.06,0.03237538]
[1739401712369,13.87983609,197.08,197.06,0.03237538]
[1739401712577,0.03701119,197.09,197.06,5.10607538]
[1739401712770,0.03701119,197.09,197.06,0.03237538]
[1739401715068,5.0736,197.07,197.06,0.03237538]